[Event "Titled Tuesday Blitz July 25 Early 2023"]
[White "Orlov, Georgi"]
[Black "Hoffmann, Asa"]
[WhiteFideId "2011271"]
[BlackFideId "2001470"]
[WhiteElo "2554"]
[BlackElo "2403"]
[Result "1-0"]
[Round "8"]
[TimeControl "180+2"]
[Date "2023.07.25"]
[WhiteClock "0:00:39"]
[BlackClock "0:00:00"]
[Board "123"]

1. d4 {[%clk 0:02:55]}  Nf6 {[%clk 0:02:51]} 2. Nf3 {[%clk 0:02:55]}  d6 {[%clk 0:02:47]} 3. c4 {[%clk 0:02:55]}  c6 {[%clk 0:02:46]} 4. Nc3 {[%clk 0:02:55]}  Bf5 {[%clk 0:02:46]} 5. g3 {[%clk 0:02:53]}  h6 {[%clk 0:02:45]} 6. Bg2 {[%clk 0:02:52]}  Nbd7 {[%clk 0:02:44]} 7. Nh4 {[%clk 0:02:52]}  Bh7 {[%clk 0:02:43]} 8. e4 {[%clk 0:02:52]}  e5 {[%clk 0:02:43]} 9. d5 {[%clk 0:02:51]}  Be7 {[%clk 0:02:42]} 10. Nf5 {[%clk 0:02:50]}  Bxf5 {[%clk 0:02:41]} 11. exf5 {[%clk 0:02:50]}  c5 {[%clk 0:02:37]} 12. O-O {[%clk 0:02:48]}  O-O {[%clk 0:02:36]} 13. h3 {[%clk 0:02:46]}  a6 {[%clk 0:02:35]} 14. Be3 {[%clk 0:02:45]}  Rb8 {[%clk 0:02:31]} 15. Qe2 {[%clk 0:02:44]}  Nh7 {[%clk 0:02:24]} 16. h4 {[%clk 0:02:43]}  Nhf6 {[%clk 0:02:18]} 17. Rab1 {[%clk 0:02:42]}  Ne8 {[%clk 0:02:17]} 18. a3 {[%clk 0:02:39]}  Nc7 {[%clk 0:02:16]} 19. b4 {[%clk 0:02:39]}  b6 {[%clk 0:02:12]} 20. Ne4 {[%clk 0:02:34]}  Nf6 {[%clk 0:02:11]} 21. bxc5 {[%clk 0:02:31]}  bxc5 {[%clk 0:02:07]} 22. Nxf6+ {[%clk 0:02:25]}  Bxf6 {[%clk 0:02:07]} 23. Qc2 {[%clk 0:02:24]}  Qd7 {[%clk 0:02:05]} 24. Bd2 {[%clk 0:02:13]}  Rfc8 {[%clk 0:01:58]} 25. Kh2 {[%clk 0:02:06]}  Ne8 {[%clk 0:01:51]} 26. Bh3 {[%clk 0:01:56]}  Qe7 {[%clk 0:01:45]} 27. Ba5 {[%clk 0:01:53]}  Qd7 {[%clk 0:01:36]} 28. Bb6 {[%clk 0:01:44]}  Rb7 {[%clk 0:01:21]} 29. a4 {[%clk 0:01:44]}  Rcb8 {[%clk 0:01:18]} 30. a5 {[%clk 0:01:44]}  Qc8 {[%clk 0:01:03]} 31. Rb3 {[%clk 0:01:41]}  Re7 {[%clk 0:01:02]} 32. Bg2 {[%clk 0:01:35]}  Qd7 {[%clk 0:00:59]} 33. Rfb1 {[%clk 0:01:33]}  Rc8 {[%clk 0:00:47]} 34. Be4 {[%clk 0:01:27]}  Rb8 {[%clk 0:00:20]} 35. Qa2 {[%clk 0:01:26]}  Rb7 {[%clk 0:00:18]} 36. Re3 {[%clk 0:01:23]}  Qc8 {[%clk 0:00:18]} 37. Qa4 {[%clk 0:01:21]}  Red7 {[%clk 0:00:17]} 38. Kg2 {[%clk 0:01:20]}  Bd8 {[%clk 0:00:16]} 39. Reb3 {[%clk 0:01:16]}  Bxb6 {[%clk 0:00:14]} 40. Rxb6 {[%clk 0:01:14]}  Nf6 {[%clk 0:00:14]} 41. Bc2 {[%clk 0:01:10]}  e4 {[%clk 0:00:11]} 42. Rc6 {[%clk 0:01:06]}  Qe8 {[%clk 0:00:09]} 43. Rb3 {[%clk 0:00:59]}  Rxb3 {[%clk 0:00:07]} 44. Qxb3 {[%clk 0:00:59]}  Rd8 {[%clk 0:00:07]} 45. Rb6 {[%clk 0:00:59]}  Qe5 {[%clk 0:00:06]} 46. Rxa6 {[%clk 0:00:53]}  Qxf5 {[%clk 0:00:05]} 47. Bd1 {[%clk 0:00:48]}  Re8 {[%clk 0:00:05]} 48. Qe3 {[%clk 0:00:46]}  Ng4 {[%clk 0:00:05]} 49. Bxg4 {[%clk 0:00:46]}  Qxg4 {[%clk 0:00:04]} 50. Rxd6 {[%clk 0:00:46]}  Qd1 {[%clk 0:00:03]} 51. Rd7 {[%clk 0:00:42]}  Qa1 {[%clk 0:00:00]} 52. Ra7 {[%clk 0:00:39]} 1-0


[Site "https://www.chess.com"]

[Event "Titled Tuesday Blitz July 25 Early 2023"]
[White "Astafurov, Arseniy"]
[Black "Kochiev, Ivan"]
[WhiteFideId "24175218"]
[BlackFideId "2917890"]
[WhiteElo "2394"]
[BlackElo "2541"]
[Result "1-0"]
[Round "8"]
[TimeControl "180+2"]
[Date "2023.07.25"]
[WhiteClock "0:00:03"]
[BlackClock "0:00:35"]
[Board "124"]

1. c4 {[%clk 0:02:58]}  Nf6 {[%clk 0:02:36]} 2. Nc3 {[%clk 0:02:58]}  e6 {[%clk 0:02:35]} 3. e4 {[%clk 0:02:59]}  d5 {[%clk 0:02:35]} 4. cxd5 {[%clk 0:02:59]}  exd5 {[%clk 0:02:35]} 5. e5 {[%clk 0:03:00]}  d4 {[%clk 0:02:36]} 6. exf6 {[%clk 0:03:00]}  dxc3 {[%clk 0:02:37]} 7. Bb5+ {[%clk 0:03:00]}  c6 {[%clk 0:02:38]} 8. Qe2+ {[%clk 0:03:01]}  Be6 {[%clk 0:02:37]} 9. Bc4 {[%clk 0:03:01]}  Qxf6 {[%clk 0:02:37]} 10. dxc3 {[%clk 0:02:58]}  Bc5 {[%clk 0:02:36]} 11. Bxe6 {[%clk 0:02:56]}  fxe6 {[%clk 0:02:36]} 12. Nf3 {[%clk 0:02:54]}  O-O {[%clk 0:02:36]} 13. O-O {[%clk 0:02:52]}  Nd7 {[%clk 0:02:36]} 14. Rd1 {[%clk 0:02:44]}  Nb6 {[%clk 0:02:36]} 15. Bg5 {[%clk 0:02:11]}  Qg6 {[%clk 0:02:35]} 16. b4 {[%clk 0:02:07]}  Nd5 {[%clk 0:02:25]} 17. bxc5 {[%clk 0:01:57]}  Nxc3 {[%clk 0:02:23]} 18. Qd3 {[%clk 0:01:44]}  Nxd1 {[%clk 0:02:15]} 19. Qxg6 {[%clk 0:01:43]}  hxg6 {[%clk 0:02:16]} 20. Rxd1 {[%clk 0:01:43]}  Rf5 {[%clk 0:02:16]} 21. Be7 {[%clk 0:01:28]}  Re8 {[%clk 0:02:10]} 22. Bd6 {[%clk 0:01:22]}  Rd8 {[%clk 0:02:08]} 23. Re1 {[%clk 0:01:18]}  Re8 {[%clk 0:01:41]} 24. h4 {[%clk 0:00:45]}  b6 {[%clk 0:01:40]} 25. Nd4 {[%clk 0:00:39]}  Rd5 {[%clk 0:01:36]} 26. Nxc6 {[%clk 0:00:39]}  Kh7 {[%clk 0:01:24]} 27. Ne7 {[%clk 0:00:19]}  Rh5 {[%clk 0:01:24]} 28. c6 {[%clk 0:00:17]}  Rxh4 {[%clk 0:01:20]} 29. c7 {[%clk 0:00:16]}  Rc4 {[%clk 0:01:21]} 30. c8=Q {[%clk 0:00:14]}  Rexc8 {[%clk 0:01:22]} 31. Nxc8 {[%clk 0:00:15]}  Rxc8 {[%clk 0:01:23]} 32. Rxe6 {[%clk 0:00:10]}  Rc2 {[%clk 0:01:21]} 33. a3 {[%clk 0:00:09]}  b5 {[%clk 0:01:09]} 34. Re7 {[%clk 0:00:09]}  a5 {[%clk 0:01:06]} 35. Be5 {[%clk 0:00:09]}  Ra2 {[%clk 0:01:04]} 36. Rxg7+ {[%clk 0:00:09]}  Kh6 {[%clk 0:01:04]} 37. Rb7 {[%clk 0:00:09]}  Rxa3 {[%clk 0:01:00]} 38. Rxb5 {[%clk 0:00:08]}  a4 {[%clk 0:01:01]} 39. Ra5 {[%clk 0:00:08]}  Ra2 {[%clk 0:01:01]} 40. g4 {[%clk 0:00:08]}  Re2 {[%clk 0:00:59]} 41. Kg2 {[%clk 0:00:07]}  a3 {[%clk 0:00:55]} 42. Bf4+ {[%clk 0:00:08]}  g5 {[%clk 0:00:54]} 43. Rxg5 {[%clk 0:00:08]}  a2 {[%clk 0:00:52]} 44. Ra5+ {[%clk 0:00:07]}  Kg6 {[%clk 0:00:53]} 45. Ra6+ {[%clk 0:00:06]}  Kf7 {[%clk 0:00:52]} 46. Kf3 {[%clk 0:00:07]}  Rb2 {[%clk 0:00:52]} 47. Be3 {[%clk 0:00:07]}  Ke7 {[%clk 0:00:51]} 48. g5 {[%clk 0:00:07]}  Kf7 {[%clk 0:00:51]} 49. Kg4 {[%clk 0:00:07]}  Rb4+ {[%clk 0:00:51]} 50. Bf4 {[%clk 0:00:07]}  Rb2 {[%clk 0:00:52]} 51. Kf5 {[%clk 0:00:06]}  Rxf2 {[%clk 0:00:51]} 52. Ra7+ {[%clk 0:00:06]}  Ke8 {[%clk 0:00:51]} 53. Ke6 {[%clk 0:00:06]}  Kf8 {[%clk 0:00:51]} 54. Be5 {[%clk 0:00:03]}  Kg8 {[%clk 0:00:48]} 55. g6 {[%clk 0:00:04]}  Rf8 {[%clk 0:00:40]} 56. Rxa2 {[%clk 0:00:03]}  Re8+ {[%clk 0:00:40]} 57. Kf5 {[%clk 0:00:03]}  Rf8+ {[%clk 0:00:40]} 58. Bf6 {[%clk 0:00:04]}  Rc8 {[%clk 0:00:40]} 59. Rh2 {[%clk 0:00:04]}  Rc5+ {[%clk 0:00:38]} 60. Be5 {[%clk 0:00:05]}  Kf8 {[%clk 0:00:38]} 61. Rh8+ {[%clk 0:00:02]}  Ke7 {[%clk 0:00:38]} 62. Rh7+ {[%clk 0:00:02]}  Ke8 {[%clk 0:00:37]} 63. g7 {[%clk 0:00:02]}  Kf7 {[%clk 0:00:38]} 64. Rh5 {[%clk 0:00:02]}  Rc1 {[%clk 0:00:33]} 65. Rh8 {[%clk 0:00:02]}  Rf1+ {[%clk 0:00:32]} 66. Ke4 {[%clk 0:00:03]}  Rg1 {[%clk 0:00:33]} 67. Bd4 {[%clk 0:00:02]}  Rg4+ {[%clk 0:00:33]} 68. Kd5 {[%clk 0:00:02]}  Rg6 {[%clk 0:00:34]} 69. Rf8+ {[%clk 0:00:02]}  Ke7 {[%clk 0:00:34]} 70. g8=Q {[%clk 0:00:03]}  Rd6+ {[%clk 0:00:35]} 71. Kc4 {[%clk 0:00:03]}  Re6 {[%clk 0:00:35]} 72. Qf7+ {[%clk 0:00:03]}  Kd6 {[%clk 0:00:36]} 73. Rd8+ {[%clk 0:00:03]}  Kc6 {[%clk 0:00:35]} 74. Qd7# {[%clk 0:00:03]} 1-0


[Site "https://www.chess.com"]

[Event "Titled Tuesday Blitz July 25 Early 2023"]
[White "Vyatkin, Dmitry"]
[Black "Melikhov, Evgeny V."]
[WhiteFideId "4171900"]
[BlackFideId "4122046"]
[WhiteElo "2527"]
[BlackElo "2376"]
[Result "1-0"]
[Round "8"]
[TimeControl "180+2"]
[Date "2023.07.25"]
[WhiteClock "0:00:36"]
[BlackClock "0:00:47"]
[Board "126"]

1. d4 {[%clk 0:03:00]}  Nf6 {[%clk 0:02:59]} 2. c4 {[%clk 0:02:53]}  e6 {[%clk 0:02:59]} 3. g3 {[%clk 0:02:52]}  d5 {[%clk 0:02:58]} 4. Nf3 {[%clk 0:02:51]}  dxc4 {[%clk 0:02:58]} 5. Bg2 {[%clk 0:02:50]}  Nc6 {[%clk 0:02:59]} 6. O-O {[%clk 0:02:45]}  Rb8 {[%clk 0:02:58]} 7. Bg5 {[%clk 0:02:41]}  h6 {[%clk 0:02:54]} 8. Bxf6 {[%clk 0:02:40]}  Qxf6 {[%clk 0:02:53]} 9. e3 {[%clk 0:02:37]}  Bd6 {[%clk 0:02:49]} 10. Qc1 {[%clk 0:02:27]}  O-O {[%clk 0:02:44]} 11. Qxc4 {[%clk 0:02:27]}  e5 {[%clk 0:02:44]} 12. d5 {[%clk 0:02:26]}  Ne7 {[%clk 0:02:42]} 13. Nc3 {[%clk 0:02:25]}  Ng6 {[%clk 0:02:40]} 14. Rac1 {[%clk 0:02:13]}  a6 {[%clk 0:02:39]} 15. Ne4 {[%clk 0:02:12]}  Qe7 {[%clk 0:02:38]} 16. Nxd6 {[%clk 0:02:12]}  cxd6 {[%clk 0:02:38]} 17. Qc7 {[%clk 0:02:07]}  Bg4 {[%clk 0:02:32]} 18. Nd2 {[%clk 0:02:03]}  Rbc8 {[%clk 0:02:15]} 19. Qxe7 {[%clk 0:01:45]}  Nxe7 {[%clk 0:02:14]} 20. Ne4 {[%clk 0:01:46]}  Nxd5 {[%clk 0:01:43]} 21. Nxd6 {[%clk 0:01:45]}  Rxc1 {[%clk 0:01:42]} 22. Rxc1 {[%clk 0:01:45]}  Nb4 {[%clk 0:01:41]} 23. Rc4 {[%clk 0:01:02]}  Nxa2 {[%clk 0:01:13]} 24. Rxg4 {[%clk 0:01:02]}  Rd8 {[%clk 0:01:13]} 25. Nxb7 {[%clk 0:00:54]}  Rd1+ {[%clk 0:01:13]} 26. Bf1 {[%clk 0:00:55]}  Nc1 {[%clk 0:01:10]} 27. Kg2 {[%clk 0:00:53]}  Nd3 {[%clk 0:01:06]} 28. Bxd3 {[%clk 0:00:51]}  Rxd3 {[%clk 0:01:07]} 29. Rb4 {[%clk 0:00:51]}  f6 {[%clk 0:01:04]} 30. Rb6 {[%clk 0:00:47]}  Kf7 {[%clk 0:01:00]} 31. b4 {[%clk 0:00:45]}  Ra3 {[%clk 0:00:59]} 32. Nc5 {[%clk 0:00:40]}  a5 {[%clk 0:00:59]} 33. b5 {[%clk 0:00:40]}  Ra2 {[%clk 0:00:56]} 34. Ra6 {[%clk 0:00:40]}  Rb2 {[%clk 0:00:57]} 35. Rxa5 {[%clk 0:00:40]}  Ke7 {[%clk 0:00:57]} 36. Na4 {[%clk 0:00:37]}  Ra2 {[%clk 0:00:55]} 37. b6 {[%clk 0:00:37]}  Kd6 {[%clk 0:00:52]} 38. b7 {[%clk 0:00:36]}  Kc7 {[%clk 0:00:52]} 39. Rb5 {[%clk 0:00:36]}  Kb8 {[%clk 0:00:47]} 40. Nc5 {[%clk 0:00:36]} 1-0


[Site "https://www.chess.com"]

[Event "Titled Tuesday Blitz July 25 Early 2023"]
[White "Llanos, Guillermo"]
[Black "Gontcharov, Vladislav"]
[WhiteFideId "100358"]
[BlackFideId "4123492"]
[WhiteElo "2369"]
[BlackElo "2522"]
[Result "1-0"]
[Round "8"]
[TimeControl "180+2"]
[Date "2023.07.25"]
[WhiteClock "0:00:06"]
[BlackClock "0:00:00"]
[Board "127"]

1. Nf3 {[%clk 0:03:00]}  Nf6 {[%clk 0:02:57]} 2. g3 {[%clk 0:03:00]}  c5 {[%clk 0:02:56]} 3. Bg2 {[%clk 0:03:00]}  Nc6 {[%clk 0:02:56]} 4. O-O {[%clk 0:03:00]}  d5 {[%clk 0:02:56]} 5. d4 {[%clk 0:03:00]}  e6 {[%clk 0:02:56]} 6. c4 {[%clk 0:02:59]}  dxc4 {[%clk 0:02:56]} 7. Qa4 {[%clk 0:02:58]}  Bd7 {[%clk 0:02:56]} 8. dxc5 {[%clk 0:02:56]}  Bxc5 {[%clk 0:02:49]} 9. Qxc4 {[%clk 0:02:56]}  Qe7 {[%clk 0:02:46]} 10. Bg5 {[%clk 0:02:55]}  Rc8 {[%clk 0:02:41]} 11. Bxf6 {[%clk 0:02:52]}  gxf6 {[%clk 0:02:41]} 12. Nc3 {[%clk 0:02:53]}  f5 {[%clk 0:02:09]} 13. Rad1 {[%clk 0:02:44]}  a6 {[%clk 0:01:50]} 14. a4 {[%clk 0:02:42]}  Nb4 {[%clk 0:01:46]} 15. Qf4 {[%clk 0:02:19]}  Bc6 {[%clk 0:01:37]} 16. Ne5 {[%clk 0:02:13]}  Bxg2 {[%clk 0:01:36]} 17. Kxg2 {[%clk 0:02:13]}  Rc7 {[%clk 0:01:17]} 18. Rd2 {[%clk 0:01:59]}  f6 {[%clk 0:00:57]} 19. Nf3 {[%clk 0:01:56]}  O-O {[%clk 0:00:57]} 20. Rfd1 {[%clk 0:01:55]}  Nc6 {[%clk 0:00:54]} 21. e4 {[%clk 0:01:47]}  fxe4 {[%clk 0:00:54]} 22. Nxe4 {[%clk 0:01:45]}  Bb4 {[%clk 0:00:54]} 23. Rd3 {[%clk 0:01:35]}  f5 {[%clk 0:00:49]} 24. Nd6 {[%clk 0:01:10]}  e5 {[%clk 0:00:41]} 25. Qc4+ {[%clk 0:01:09]}  Kh8 {[%clk 0:00:36]} 26. Nh4 {[%clk 0:00:54]}  Bxd6 {[%clk 0:00:32]} 27. Rxd6 {[%clk 0:00:53]}  Nd4 {[%clk 0:00:32]} 28. Qd5 {[%clk 0:00:50]}  f4 {[%clk 0:00:16]} 29. Re1 {[%clk 0:00:38]}  f3+ {[%clk 0:00:16]} 30. Kh1 {[%clk 0:00:32]}  Rc6 {[%clk 0:00:12]} 31. Rd7 {[%clk 0:00:30]}  Qe6 {[%clk 0:00:12]} 32. Qxe6 {[%clk 0:00:21]}  Rxe6 {[%clk 0:00:12]} 33. Rxd4 {[%clk 0:00:20]}  Rb6 {[%clk 0:00:05]} 34. Rd2 {[%clk 0:00:19]}  Rb3 {[%clk 0:00:05]} 35. h3 {[%clk 0:00:17]}  Rc8 {[%clk 0:00:04]} 36. Kh2 {[%clk 0:00:16]}  Rc5 {[%clk 0:00:03]} 37. g4 {[%clk 0:00:16]}  Kg7 {[%clk 0:00:03]} 38. Kg3 {[%clk 0:00:16]}  Kf6 {[%clk 0:00:04]} 39. Nxf3 {[%clk 0:00:14]}  Rc4 {[%clk 0:00:04]} 40. Re3 {[%clk 0:00:14]}  Rbb4 {[%clk 0:00:03]} 41. b3 {[%clk 0:00:13]}  Re4 {[%clk 0:00:02]} 42. Rxe4 {[%clk 0:00:13]}  Rxe4 {[%clk 0:00:02]} 43. Rd3 {[%clk 0:00:13]}  Rb4 {[%clk 0:00:02]} 44. Re3 {[%clk 0:00:13]}  b5 {[%clk 0:00:01]} 45. Nxe5 {[%clk 0:00:12]}  bxa4 {[%clk 0:00:01]} 46. bxa4 {[%clk 0:00:12]}  Rxa4 {[%clk 0:00:01]} 47. f4 {[%clk 0:00:12]}  Ra1 {[%clk 0:00:01]} 48. Kf3 {[%clk 0:00:12]}  a5 {[%clk 0:00:02]} 49. Ke4 {[%clk 0:00:09]}  a4 {[%clk 0:00:02]} 50. g5+ {[%clk 0:00:09]}  Ke7 {[%clk 0:00:02]} 51. Rc3 {[%clk 0:00:08]}  Re1+ {[%clk 0:00:03]} 52. Kf5 {[%clk 0:00:08]}  Re2 {[%clk 0:00:02]} 53. Rc7+ {[%clk 0:00:07]}  Kd6 {[%clk 0:00:03]} 54. Rxh7 {[%clk 0:00:07]}  a3 {[%clk 0:00:02]} 55. Ra7 {[%clk 0:00:07]}  a2 {[%clk 0:00:03]} 56. h4 {[%clk 0:00:07]}  Rb2 {[%clk 0:00:02]} 57. h5 {[%clk 0:00:07]}  Kd5 {[%clk 0:00:03]} 58. h6 {[%clk 0:00:06]}  Kc5 {[%clk 0:00:02]} 59. h7 {[%clk 0:00:06]}  Rb7 {[%clk 0:00:03]} 60. Rxa2 {[%clk 0:00:05]}  Rxh7 {[%clk 0:00:03]} 61. g6 {[%clk 0:00:05]}  Rh5+ {[%clk 0:00:03]} 62. Kf6 {[%clk 0:00:05]}  Rh6 {[%clk 0:00:04]} 63. Kg5 {[%clk 0:00:05]}  Rh1 {[%clk 0:00:04]} 64. Rd2 {[%clk 0:00:05]}  Kb6 {[%clk 0:00:02]} 65. Kf6 {[%clk 0:00:05]}  Kc7 {[%clk 0:00:02]} 66. f5 {[%clk 0:00:05]}  Rg1 {[%clk 0:00:02]} 67. g7 {[%clk 0:00:06]}  Rg3 {[%clk 0:00:00]} 68. Ng6 {[%clk 0:00:06]} 1-0


[Site "https://www.chess.com"]

[Event "Titled Tuesday Blitz July 25 Early 2023"]
[White "Dwilewicz, Katarzyna"]
[Black "Bilan, Danila"]
[WhiteFideId "1148486"]
[BlackFideId "24161918"]
[WhiteElo "2354"]
[BlackElo "2514"]
[Result "1-0"]
[Round "8"]
[TimeControl "180+2"]
[Date "2023.07.25"]
[WhiteClock "0:00:03"]
[BlackClock "0:00:00"]
[Board "129"]

1. e4 {[%clk 0:03:00]}  c6 {[%clk 0:02:59]} 2. d4 {[%clk 0:03:00]}  d5 {[%clk 0:03:00]} 3. Nc3 {[%clk 0:03:00]}  b5 {[%clk 0:02:51]} 4. exd5 {[%clk 0:02:54]}  b4 {[%clk 0:02:49]} 5. Ne4 {[%clk 0:02:52]}  cxd5 {[%clk 0:02:49]} 6. Nc5 {[%clk 0:02:48]}  Nf6 {[%clk 0:02:49]} 7. Bb5+ {[%clk 0:02:46]}  Bd7 {[%clk 0:02:49]} 8. Nxd7 {[%clk 0:02:44]}  Nbxd7 {[%clk 0:02:50]} 9. Bd2 {[%clk 0:02:42]}  Qb6 {[%clk 0:02:43]} 10. Bd3 {[%clk 0:02:39]}  Qxd4 {[%clk 0:02:39]} 11. Nf3 {[%clk 0:02:38]}  Qb6 {[%clk 0:02:34]} 12. O-O {[%clk 0:02:37]}  e6 {[%clk 0:02:33]} 13. Qe1 {[%clk 0:02:23]}  Bd6 {[%clk 0:02:23]} 14. c3 {[%clk 0:01:42]}  a5 {[%clk 0:02:07]} 15. Nd4 {[%clk 0:01:27]}  O-O {[%clk 0:01:57]} 16. Nb5 {[%clk 0:01:21]}  Be7 {[%clk 0:01:23]} 17. cxb4 {[%clk 0:01:12]}  axb4 {[%clk 0:01:14]} 18. Bxb4 {[%clk 0:01:10]}  Bxb4 {[%clk 0:01:08]} 19. Qxb4 {[%clk 0:01:11]}  Nc5 {[%clk 0:01:09]} 20. Be2 {[%clk 0:01:08]}  Ra4 {[%clk 0:00:56]} 21. Qd2 {[%clk 0:01:00]}  Nfe4 {[%clk 0:00:41]} 22. Qf4 {[%clk 0:00:59]}  Nc3 {[%clk 0:00:27]} 23. Qd2 {[%clk 0:00:39]}  Nxb5 {[%clk 0:00:23]} 24. b3 {[%clk 0:00:38]}  Rd4 {[%clk 0:00:11]} 25. Qb2 {[%clk 0:00:35]}  Re4 {[%clk 0:00:07]} 26. Bf3 {[%clk 0:00:24]}  Rf4 {[%clk 0:00:07]} 27. Qd2 {[%clk 0:00:19]}  Rf6 {[%clk 0:00:06]} 28. a4 {[%clk 0:00:18]}  Nxb3 {[%clk 0:00:05]} 29. Qb2 {[%clk 0:00:12]}  N5d4 {[%clk 0:00:03]} 30. Bd1 {[%clk 0:00:09]}  Rb8 {[%clk 0:00:02]} 31. Rb1 {[%clk 0:00:10]}  Qb4 {[%clk 0:00:02]} 32. a5 {[%clk 0:00:04]}  Qxa5 {[%clk 0:00:03]} 33. Qxd4 {[%clk 0:00:03]}  h6 {[%clk 0:00:02]} 34. Qd3 {[%clk 0:00:03]}  Qb4 {[%clk 0:00:02]} 35. Bxb3 {[%clk 0:00:03]}  Qf8 {[%clk 0:00:02]} 36. Bc2 {[%clk 0:00:03]}  g6 {[%clk 0:00:02]} 37. Rxb8 {[%clk 0:00:03]}  Qxb8 {[%clk 0:00:02]} 38. Qd4 {[%clk 0:00:03]}  Qd8 {[%clk 0:00:02]} 39. Rb1 {[%clk 0:00:03]}  Kg7 {[%clk 0:00:02]} 40. Qe5 {[%clk 0:00:04]}  Qc8 {[%clk 0:00:02]} 41. Bd3 {[%clk 0:00:04]}  Qa8 {[%clk 0:00:01]} 42. h3 {[%clk 0:00:04]}  Qa2 {[%clk 0:00:02]} 43. Re1 {[%clk 0:00:03]}  Qd2 {[%clk 0:00:03]} 44. Qe2 {[%clk 0:00:02]}  Qf4 {[%clk 0:00:03]} 45. Qe3 {[%clk 0:00:02]}  Qb4 {[%clk 0:00:03]} 46. g3 {[%clk 0:00:03]}  h5 {[%clk 0:00:02]} 47. Kg2 {[%clk 0:00:03]}  Qd6 {[%clk 0:00:02]} 48. h4 {[%clk 0:00:04]}  Qb4 {[%clk 0:00:02]} 49. Qe5 {[%clk 0:00:04]}  Qd2 {[%clk 0:00:02]} 50. Qe2 {[%clk 0:00:03]}  Qc3 {[%clk 0:00:02]} 51. Bb1 {[%clk 0:00:03]}  Qc5 {[%clk 0:00:01]} 52. Qe3 {[%clk 0:00:03]}  Qb6 {[%clk 0:00:00]} 53. Qxb6 {[%clk 0:00:03]} 1-0


[Site "https://www.chess.com"]

[Event "Titled Tuesday Blitz July 25 Early 2023"]
[White "marik_spb"]
[Black "K2JW"]
[WhiteElo "2486"]
[BlackElo "2350"]
[Result "1/2-1/2"]
[Round "8"]
[TimeControl "180+2"]
[Date "2023.07.25"]
[WhiteClock "0:00:08"]
[BlackClock "0:00:09"]
[Board "132"]

1. d4 {[%clk 0:03:00]}  d5 {[%clk 0:02:58]} 2. c4 {[%clk 0:03:00]}  e6 {[%clk 0:02:58]} 3. Nf3 {[%clk 0:03:00]}  Nf6 {[%clk 0:02:58]} 4. g3 {[%clk 0:03:01]}  Be7 {[%clk 0:02:57]} 5. Bg2 {[%clk 0:03:01]}  O-O {[%clk 0:02:58]} 6. O-O {[%clk 0:03:00]}  Nbd7 {[%clk 0:02:51]} 7. Nbd2 {[%clk 0:03:00]}  b6 {[%clk 0:02:51]} 8. Qc2 {[%clk 0:02:57]}  Bb7 {[%clk 0:02:51]} 9. Rd1 {[%clk 0:02:57]}  c5 {[%clk 0:02:50]} 10. b3 {[%clk 0:02:44]}  Rc8 {[%clk 0:02:42]} 11. Bb2 {[%clk 0:02:44]}  dxc4 {[%clk 0:02:34]} 12. bxc4 {[%clk 0:02:45]}  cxd4 {[%clk 0:02:33]} 13. Nxd4 {[%clk 0:02:44]}  Bxg2 {[%clk 0:02:32]} 14. Kxg2 {[%clk 0:02:45]}  Qc7 {[%clk 0:02:32]} 15. Rac1 {[%clk 0:02:44]}  Nc5 {[%clk 0:02:20]} 16. N2b3 {[%clk 0:02:37]}  Rfd8 {[%clk 0:02:18]} 17. Nxc5 {[%clk 0:02:32]}  Bxc5 {[%clk 0:02:19]} 18. Qb3 {[%clk 0:02:31]}  Qb7+ {[%clk 0:02:09]} 19. Qf3 {[%clk 0:02:28]}  Qxf3+ {[%clk 0:02:06]} 20. Kxf3 {[%clk 0:02:29]}  Rd7 {[%clk 0:01:53]} 21. Nb5 {[%clk 0:02:21]}  Rcd8 {[%clk 0:01:53]} 22. Rxd7 {[%clk 0:02:16]}  Rxd7 {[%clk 0:01:54]} 23. Bxf6 {[%clk 0:01:40]}  gxf6 {[%clk 0:01:54]} 24. Rc2 {[%clk 0:01:40]}  Kg7 {[%clk 0:01:49]} 25. e3 {[%clk 0:01:39]}  f5 {[%clk 0:01:49]} 26. Ke2 {[%clk 0:01:35]}  Kf6 {[%clk 0:01:49]} 27. Rd2 {[%clk 0:01:35]}  Ke7 {[%clk 0:01:42]} 28. Rxd7+ {[%clk 0:01:34]}  Kxd7 {[%clk 0:01:43]} 29. Kd3 {[%clk 0:01:34]}  a6 {[%clk 0:01:32]} 30. Nc3 {[%clk 0:01:34]}  Kc6 {[%clk 0:01:21]} 31. f3 {[%clk 0:01:31]}  h5 {[%clk 0:01:19]} 32. h3 {[%clk 0:01:29]}  Bd6 {[%clk 0:01:15]} 33. g4 {[%clk 0:01:27]}  fxg4 {[%clk 0:01:05]} 34. fxg4 {[%clk 0:01:28]}  hxg4 {[%clk 0:01:03]} 35. hxg4 {[%clk 0:01:29]}  b5 {[%clk 0:00:47]} 36. cxb5+ {[%clk 0:01:14]}  axb5 {[%clk 0:00:48]} 37. Ne4 {[%clk 0:01:10]}  Be7 {[%clk 0:00:47]} 38. Kd4 {[%clk 0:01:03]}  f6 {[%clk 0:00:35]} 39. Ng3 {[%clk 0:00:50]}  Bd6 {[%clk 0:00:32]} 40. Nh5 {[%clk 0:00:40]}  Be7 {[%clk 0:00:29]} 41. Kd3 {[%clk 0:00:22]}  f5 {[%clk 0:00:14]} 42. gxf5 {[%clk 0:00:21]}  exf5 {[%clk 0:00:15]} 43. Ng3 {[%clk 0:00:19]}  Bf6 {[%clk 0:00:08]} 44. Nxf5 {[%clk 0:00:19]}  Kc5 {[%clk 0:00:06]} 45. Nd4 {[%clk 0:00:14]}  Kb4 {[%clk 0:00:05]} 46. Nc2+ {[%clk 0:00:14]}  Kc5 {[%clk 0:00:04]} 47. e4 {[%clk 0:00:10]}  Be5 {[%clk 0:00:03]} 48. Ne3 {[%clk 0:00:06]}  Kb4 {[%clk 0:00:03]} 49. Nc2+ {[%clk 0:00:06]}  Kc5 {[%clk 0:00:03]} 50. a3 {[%clk 0:00:04]}  Bf4 {[%clk 0:00:03]} 51. Nb4 {[%clk 0:00:04]}  Bc1 {[%clk 0:00:03]} 52. Nc2 {[%clk 0:00:03]}  Bf4 {[%clk 0:00:02]} 53. Kc3 {[%clk 0:00:02]}  Be5+ {[%clk 0:00:02]} 54. Kb3 {[%clk 0:00:03]}  Bf4 {[%clk 0:00:02]} 55. Nb4 {[%clk 0:00:01]}  Be5 {[%clk 0:00:02]} 56. Nd3+ {[%clk 0:00:02]}  Kd4 {[%clk 0:00:02]} 57. Nxe5 {[%clk 0:00:02]}  Kxe5 {[%clk 0:00:03]} 58. Kb4 {[%clk 0:00:03]}  Kxe4 {[%clk 0:00:04]} 59. Kxb5 {[%clk 0:00:03]}  Kd5 {[%clk 0:00:04]} 60. Kb6 {[%clk 0:00:04]}  Kd6 {[%clk 0:00:05]} 61. Kb7 {[%clk 0:00:04]}  Kc5 {[%clk 0:00:05]} 62. Ka6 {[%clk 0:00:03]}  Kc6 {[%clk 0:00:05]} 63. a4 {[%clk 0:00:04]}  Kc7 {[%clk 0:00:06]} 64. a5 {[%clk 0:00:04]}  Kc8 {[%clk 0:00:06]} 65. Kb6 {[%clk 0:00:05]}  Kb8 {[%clk 0:00:07]} 66. a6 {[%clk 0:00:06]}  Ka8 {[%clk 0:00:07]} 67. Kb5 {[%clk 0:00:07]}  Kb8 {[%clk 0:00:08]} 68. Kb6 {[%clk 0:00:07]}  Ka8 {[%clk 0:00:09]} 69. a7 {[%clk 0:00:08]} 1/2-1/2


[Site "https://www.chess.com"]